bitfinex-derivatives/quotes_BTCF0:USTF0_20250823
["timestamp","ask_amount","ask_price","bid_price","bid_amount"]
[1755982626458,0.79116,115390.0,115380.0,0.7151198]
[1755982626661,0.79116,115390.0,115380.0,1.20215962]
[1755982626865,0.79112,115390.0,115380.0,1.20215962]
[1755982627054,0.79116,115390.0,115380.0,1.46772247]
[1755982627256,0.79116,115390.0,115380.0,1.38988518]
[1755982627457,0.79116,115390.0,115380.0,1.49898579]
[1755982629053,0.79112,115390.0,115380.0,1.49898579]
[1755982629455,0.79112,115390.0,115380.0,1.49898512]
[1755982629855,0.8778044,115390.0,115380.0,1.49898512]
[1755982632758,0.8778044,115390.0,115380.0,1.48882032]
[1755982632959,0.8778044,115390.0,115380.0,1.49898513]
[1755982633261,0.8778044,115390.0,115380.0,1.49898516]
[1755982641763,0.79112,115390.0,115380.0,1.49898516]
[1755982642565,0.79112,115390.0,115380.0,1.48882032]
[1755982642869,0.79112,115390.0,115380.0,1.13818521]
[1755982643165,0.79112,115390.0,115380.0,1.49898521]
[1755982644268,0.79112,115390.0,115380.0,1.49903496]
[1755982645371,0.8778045,115390.0,115380.0,1.49903496]
[1755982645666,0.8778045,115390.0,115380.0,1.48887007]
[1755982646572,0.8778045,115390.0,115380.0,1.49903496]
[1755982646958,0.8778045,115390.0,115380.0,1.48887007]
[1755982649870,0.8778045,115390.0,115380.0,1.23887007]
[1755982650970,0.8778045,115390.0,115380.0,1.24903496]
[1755982651167,0.8778045,115390.0,115380.0,1.13993435]
[1755982653672,0.8778045,115390.0,115380.0,1.12976946]
[1755982658476,0.8778045,115390.0,115380.0,0.76896946]
[1755982658680,0.8778045,115390.0,115380.0,1.49056946]
[1755982659576,0.8778045,115390.0,115380.0,0.76896946]
[1755982659779,0.8778045,115390.0,115380.0,1.49056946]
[1755982663371,0.0917645,115390.0,115380.0,1.49056946]
[1755982663673,0.00508,115390.0,115380.0,1.49056946]
[1755982663882,0.00508,115390.0,115380.0,1.84056946]
[1755982664882,0.00508,115390.0,115380.0,1.94967007]
[1755982665677,0.00508,115390.0,115380.0,1.84056946]
[1755982666383,0.00508,115390.0,115380.0,1.94948297]
[1755982669476,0.0917642,115390.0,115380.0,1.94948297]
[1755982670286,0.0917642,115390.0,115380.0,1.84948297]
[1755982670782,0.0866842,115390.0,115380.0,1.74151946]
[1755982673995,0.0866842,115390.0,115380.0,1.16773799]
[1755982674182,0.0866842,115390.0,115380.0,1.65482756]
[1755982674384,0.0866842,115390.0,115380.0,1.40482756]
[1755982674686,0.0866842,115390.0,115380.0,1.49151936]
[1755982674884,0.8710015,115400.0,115390.0,0.11883]
[1755982675083,0.8710015,115400.0,115390.0,1.07560759]
[1755982675482,0.8710015,115400.0,115390.0,1.15244558]
[1755982675983,0.8730015,115400.0,115390.0,1.15244558]
[1755982676894,0.8740015,115400.0,115390.0,1.15244558]
[1755982677694,0.8740015,115400.0,115390.0,1.23022464]
[1755982677894,0.8740015,115400.0,115390.0,1.12133662]
[1755982679098,0.8740015,115400.0,115390.0,0.76053662]
[1755982679297,0.8740015,115400.0,115390.0,1.12133662]
[1755982679598,0.8740015,115400.0,115390.0,0.76053662]
[1755982679897,0.8740015,115400.0,115390.0,1.04355756]
[1755982682298,0.8740015,115400.0,115390.0,1.12133662]
[1755982683601,0.8740015,115400.0,115390.0,0.76053662]
[1755982683994,0.8740015,115400.0,115390.0,1.12133662]
[1755982684893,1.61109107,115400.0,115390.0,0.95845756]
[1755982685694,1.61109107,115400.0,115390.0,0.98153756]
[1755982686395,1.61109107,115400.0,115390.0,0.62073756]
[1755982687500,1.61109107,115400.0,115390.0,0.63496756]
[1755982687700,1.61109107,115400.0,115390.0,0.74385558]
[1755982688202,1.61109107,115400.0,115390.0,0.79296558]
[1755982690802,1.61109107,115400.0,115390.0,0.68407756]
[1755982691603,1.61109107,115400.0,115390.0,0.79296558]
[1755982696808,1.61109107,115400.0,115390.0,0.75917558]
[1755982697105,1.67466064,115400.0,115390.0,0.24798151]
[1755982697298,2.45894064,115400.0,115390.0,0.13909349]
[1755982697497,1.97185107,115400.0,115390.0,0.13909349]
[1755982698307,1.97185107,115400.0,115390.0,0.13906308]
[1755982700700,1.97185107,115400.0,115390.0,0.07683799]
[1755982702411,1.97185107,115400.0,115390.0,0.10171799]
[1755982703010,1.18757107,115400.0,115390.0,0.10171799]
[1755982703215,1.97185107,115400.0,115390.0,0.10171799]
[1755982704210,2.11585107,115400.0,115390.0,0.10171799]
[1755982709920,1.86585107,115400.0,115390.0,0.10171799]
[1755982710819,1.86585107,115400.0,115390.0,0.16394308]
[1755982715220,1.3787615,115400.0,115390.0,0.16394308]
[1755982715421,1.86585107,115400.0,115390.0,0.17339308]
[1755982715725,1.86585107,115400.0,115390.0,0.19507308]
[1755982715926,1.86585107,115400.0,115390.0,0.20873308]
[1755982716226,1.86589107,115400.0,115390.0,0.24072308]
[1755982716830,1.86589107,115400.0,115390.0,0.25668308]
[1755982717329,1.08157107,115400.0,115390.0,0.25668308]
[1755982717531,1.86585107,115400.0,115390.0,0.25668308]
[1755982719123,1.86585107,115400.0,115390.0,0.22469308]
[1755982719521,1.86585107,115400.0,115390.0,0.25668308]
[1755982721231,1.08157107,115400.0,115390.0,0.22469308]
[1755982721433,1.08157107,115400.0,115390.0,0.83045705]
[1755982721434,0.8739615,115400.0,115390.0,0.83045705]
[1755982724327,0.0896815,115400.0,115390.0,0.83045705]
[1755982724534,0.8740015,115400.0,115390.0,1.08045705]
[1755982724928,0.8740015,115400.0,115390.0,1.44125705]
[1755982725738,0.78732,115400.0,115390.0,1.44125705]
[1755982726038,0.8739968,115400.0,115390.0,1.44125705]
[1755982726338,0.8739968,115400.0,115390.0,0.89194239]
[1755982726529,0.8739968,115400.0,115390.0,1.37903196]
[1755982726930,0.003,115400.0,115390.0,1.37903196]
[1755982727132,0.78728,115400.0,115390.0,1.45684579]
[1755982727330,0.78728,115400.0,115390.0,1.45676243]
[1755982728636,0.8739568,115400.0,115390.0,1.45676243]
[1755982731637,0.78728,115400.0,115390.0,1.45676243]
[1755982734538,0.8739565,115400.0,115390.0,1.45676243]
[1755982739036,0.8739565,115400.0,115390.0,1.20676243]
[1755982739941,0.8739565,115400.0,115390.0,0.71967286]
[1755982740328,0.8739565,115400.0,115390.0,1.20676243]
[1755982740741,0.8739565,115400.0,115390.0,0.71967286]
[1755982741042,0.8739565,115400.0,115390.0,1.12903196]
[1755982749249,0.8739565,115400.0,115390.0,1.20676243]
[1755982751150,0.8739565,115400.0,115390.0,0.84596243]
[1755982751452,0.8739565,115400.0,115390.0,1.12903196]
[1755982754557,0.8739565,115400.0,115390.0,1.23791998]
[1755982755052,0.8739565,115400.0,115390.0,1.12903196]
[1755982755354,0.8739565,115400.0,115390.0,1.23791998]
[1755982755653,0.89362737,115400.0,115390.0,1.23791998]
[1755982762656,0.89362737,115400.0,115390.0,1.12903196]
[1755982764260,0.89362737,115400.0,115390.0,1.23791998]
[1755982768763,0.89362737,115400.0,115390.0,1.12903196]
[1755982769153,0.89362737,115400.0,115390.0,1.23791998]
[1755982779668,0.10934737,115400.0,115390.0,1.23791998]
[1755982779967,0.89338737,115400.0,115390.0,1.23791998]
[1755982780166,0.89338737,115400.0,115390.0,0.75083041]
[1755982780562,0.89338737,115400.0,115390.0,1.23791998]
[1755982780869,0.89338737,115400.0,115390.0,1.31571746]
[1755982781063,0.89338737,115400.0,115390.0,0.82862789]
[1755982781267,0.89338737,115400.0,115390.0,1.20682944]
[1755982782767,0.89338737,115400.0,115390.0,0.71973987]
[1755982782970,0.89338737,115400.0,115390.0,1.20682944]
[1755982783368,0.89338737,115400.0,115390.0,1.12903196]
[1755982785465,0.89438737,115400.0,115390.0,1.20683096]
[1755982786369,0.89338737,115400.0,115390.0,0.71974139]
[1755982786570,0.89338737,115400.0,115390.0,1.20683096]
[1755982788371,0.10934737,115400.0,115390.0,0.71974139]
[1755982788573,0.89338737,115400.0,115390.0,1.20683096]
[1755982789570,0.89338737,115400.0,115390.0,1.12903196]
[1755982791174,0.8737165,115400.0,115390.0,1.23791998]
[1755982792372,0.8737165,115400.0,115390.0,0.75083041]
[1755982792576,0.8737165,115400.0,115390.0,1.23791998]
[1755982793374,0.0896765,115400.0,115390.0,1.23791998]
[1755982793674,0.8736765,115400.0,115390.0,1.23791998]
[1755982796276,0.8736765,115400.0,115390.0,0.75083041]
[1755982796481,0.8736765,115400.0,115390.0,1.23791998]
[1755982798374,0.8736765,115400.0,115390.0,0.75083041]
[1755982798580,0.8736765,115400.0,115390.0,1.23791998]
[1755982802287,0.8736765,115400.0,115390.0,0.75083041]
[1755982802489,0.8736765,115400.0,115390.0,1.23791998]
[1755982804286,0.8736765,115400.0,115390.0,0.75083041]
[1755982804475,0.8736765,115400.0,115390.0,1.23791998]
[1755982804680,0.8736765,115400.0,115390.0,0.75083041]
[1755982804880,0.8736765,115400.0,115390.0,1.23791998]
[1755982805077,0.8736765,115400.0,115390.0,0.75083041]
[1755982805281,0.8736765,115400.0,115390.0,1.23791998]
[1755982806286,0.8736765,115400.0,115390.0,0.75083041]
[1755982806487,0.8736765,115400.0,115390.0,1.23791998]
[1755982806689,0.8736765,115400.0,115390.0,0.66414601]
[1755982806894,0.8736765,115400.0,115390.0,0.30334601]
[1755982807093,0.8736765,115400.0,115390.0,1.15123558]
[1755982807294,1.36076607,115400.0,115390.0,1.15123558]
[1755982808491,0.8736765,115400.0,115390.0,1.11924558]
[1755982808794,1.36076607,115400.0,115390.0,1.15327558]
[1755982809297,1.36076607,115400.0,115390.0,1.23995938]
[1755982809698,1.36088607,115400.0,115390.0,1.23995938]
[1755982813093,1.36088607,115400.0,115390.0,1.15327558]
[1755982813896,1.36088607,115400.0,115390.0,1.04438756]
[1755982815599,0.8737965,115400.0,115390.0,1.04438756]
[1755982815800,1.36088607,115400.0,115390.0,1.04438756]
[1755982817504,1.36088607,115400.0,115390.0,1.1222122]
[1755982817807,1.36088607,115400.0,115390.0,1.2088964]
[1755982818000,0.8737965,115400.0,115390.0,1.13107176]
[1755982819107,0.8737965,115400.0,115390.0,1.04438756]
[1755982820109,1.36088607,115400.0,115390.0,1.04438756]
[1755982820406,1.36088607,115400.0,115390.0,1.15327558]
[1755982823708,1.36088607,115400.0,115390.0,0.66618601]
[1755982823908,1.36088607,115400.0,115390.0,1.15327558]
[1755982827213,0.8737965,115400.0,115390.0,1.15327558]
[1755982827505,1.36088607,115400.0,115390.0,1.15327558]
[1755982832116,1.36088607,115400.0,115390.0,0.66618601]
[1755982832316,1.36088607,115400.0,115390.0,1.15327558]
[1755982833112,1.36088607,115400.0,115390.0,0.27135601]
[1755982833317,1.97168607,115400.0,115390.0,0.28843464]
[1755982833722,2.46028433,115400.0,115390.0,0.16400072]
[1755982834015,2.46028433,115400.0,115390.0,0.13912072]
[1755982836721,2.46028433,115400.0,115390.0,0.00822189]
[1755982836915,2.46028433,115400.0,115390.0,9e-08]
[1755982838016,0.57378127,115380.0,115370.0,0.08680282]
[1755982838211,0.0866992,115370.0,115360.0,0.06228273]
[1755982838407,0.93458877,115370.0,115360.0,0.07228273]
[1755982838612,0.93458877,115370.0,115360.0,0.08160273]
[1755982839215,0.93358877,115370.0,115360.0,0.08160273]
[1755982839916,0.93358877,115370.0,115360.0,0.10616273]
[1755982840121,0.93409784,115370.0,115360.0,0.10616273]
[1755982840430,0.93409784,115370.0,115360.0,0.04388]
[1755982840720,0.93409784,115370.0,115360.0,0.04588]
[1755982840909,0.93409784,115370.0,115360.0,0.10916273]
[1755982841109,0.93409784,115370.0,115360.0,0.21600072]
[1755982842221,3.38839343,115370.0,115360.0,0.10983799]
[1755982842419,2.90130386,115370.0,115360.0,0.10983799]
[1755982843426,3.38839343,115370.0,115360.0,0.10983799]
[1755982844018,2.90130386,115370.0,115360.0,0.10983799]
[1755982845628,3.68650386,115370.0,115360.0,0.10983799]
[1755982848430,4.17359343,115370.0,115360.0,0.10983799]
[1755982849125,4.17359343,115370.0,115360.0,0.13439799]
[1755982850229,4.17343343,115370.0,115360.0,0.13439799]
[1755982851933,4.31743343,115370.0,115360.0,0.13439799]
[1755982852232,4.17343343,115370.0,115360.0,0.13439799]
[1755982852827,3.38839343,115370.0,115360.0,0.13439799]
[1755982853032,4.17339343,115370.0,115360.0,0.13439799]
[1755982854733,3.81259343,115370.0,115360.0,0.13439799]
[1755982854933,4.53419343,115370.0,115360.0,0.13439799]
[1755982857337,3.74919343,115370.0,115360.0,0.13439799]
[1755982857529,4.53419343,115370.0,115360.0,0.13439799]
[1755982859136,4.28419343,115370.0,115360.0,0.13439799]
[1755982860538,3.49919343,115370.0,115360.0,0.13439799]
[1755982860732,3.79702386,115370.0,115360.0,0.23153799]
[1755982860935,3.30993429,115370.0,115360.0,0.23153799]
[1755982861142,3.79702386,115370.0,115360.0,0.23153799]
[1755982863747,3.79730386,115370.0,115360.0,0.23153799]
[1755982866552,3.79730386,115370.0,115360.0,0.18170799]
[1755982866848,3.79722386,115370.0,115360.0,0.19668799]
[1755982867144,3.79718386,115370.0,115360.0,0.23153799]
[1755982869237,3.79718386,115370.0,115360.0,0.19668799]
[1755982869238,3.81722729,115370.0,115360.0,0.19668799]
[1755982871046,3.03214729,115370.0,115360.0,0.19668799]
[1755982871247,3.81714729,115370.0,115360.0,0.19668799]
[1755982871439,3.03214729,115370.0,115360.0,0.19668799]
[1755982871645,3.81706729,115370.0,115360.0,0.19668799]
[1755982872151,3.03214729,115370.0,115360.0,0.19668799]
[1755982872354,3.81702729,115370.0,115360.0,0.19668799]
[1755982873455,3.03214729,115370.0,115360.0,0.19668799]
[1755982873749,3.81698729,115370.0,115360.0,0.19668799]
[1755982876155,3.81698729,115370.0,115360.0,0.18170799]
[1755982876354,4.30407686,115370.0,115360.0,0.15932799]
[1755982876653,4.30407686,115370.0,115360.0,0.14402799]
[1755982881854,4.30407686,115370.0,115360.0,0.16640799]
[1755982882052,3.81698729,115370.0,115360.0,0.16640799]
[1755982882252,3.81698729,115370.0,115360.0,0.18138799]
[1755982882660,3.81698729,115370.0,115360.0,0.21623799]
[1755982883460,3.81698729,115370.0,115360.0,0.16640799]
[1755982886165,3.81698729,115370.0,115360.0,0.22869072]
[1755982886667,4.30407686,115370.0,115360.0,0.07379009]
[1755982886965,4.30407686,115370.0,115360.0,9e-08]
[1755982888265,4.30607686,115370.0,115360.0,9e-08]
[1755982889266,4.30607686,115370.0,115350.0,0.06228273]
[1755982889267,0.0867065,115360.0,115350.0,0.03236492]
[1755982889463,0.086714,115350.0,115340.0,0.04100583]
[1755982889663,1.71976357,115350.0,115340.0,0.04100583]
[1755982890970,1.72176357,115350.0,115340.0,0.04100583]
[1755982891564,1.73054014,115350.0,115340.0,0.04100583]
[1755982891962,1.73054014,115350.0,115340.0,0.02354]
[1755982892469,1.87454014,115350.0,115340.0,0.13037799]
[1755982892863,1.73054014,115350.0,115340.0,0.13037799]
[1755982894165,1.75150014,115350.0,115340.0,0.07940989]
[1755982894372,2.00150014,115350.0,115340.0,0.05700559]
[1755982896466,2.0030096,115350.0,115340.0,0.05700559]
[1755982902475,2.1470096,115350.0,115340.0,0.05700559]
[1755982903985,0.1020215,115340.0,115330.0,0.02286]
[1755982904188,0.99026858,115340.0,115330.0,0.02286]
[1755982905079,0.99026858,115340.0,115330.0,0.02386]
[1755982905881,0.99026858,115340.0,115330.0,0.02486]
[1755982907182,0.99026858,115340.0,115330.0,0.13169799]
[1755982908678,0.99026858,115340.0,115330.0,0.14162799]
[1755982916485,0.99026858,115340.0,115330.0,0.17838799]
[1755982917185,0.99026858,115340.0,115330.0,0.21315799]
[1755982917787,0.99026858,115340.0,115330.0,0.17838799]
[1755982920791,0.99026858,115340.0,115330.0,0.21311799]
[1755982922482,0.99026858,115340.0,115330.0,0.17838799]
[1755982923490,2.63950858,115340.0,115330.0,0.17838799]
[1755982923691,2.63950858,115340.0,115330.0,0.21311799]
[1755982923893,3.42426858,115340.0,115330.0,0.21311799]
[1755982925591,3.06346858,115340.0,115330.0,0.22898799]
[1755982925896,3.78506858,115340.0,115330.0,0.22898799]
[1755982926586,3.06346858,115340.0,115330.0,0.22898799]
[1755982926787,3.78506858,115340.0,115330.0,0.22898799]
[1755982927399,2.51321901,115340.0,115330.0,0.22898799]
[1755982927700,3.78502858,115340.0,115330.0,0.22898799]
[1755982929592,3.00030858,115340.0,115330.0,0.22898799]
[1755982929791,3.78534858,115340.0,115330.0,0.22898799]
[1755982931400,3.78534858,115340.0,115330.0,0.29120014]
[1755982943109,3.92934858,115340.0,115330.0,0.29120014]
[1755982943400,3.78534858,115340.0,115330.0,0.25647014]
[1755982943605,3.78534858,115340.0,115330.0,0.29120014]
[1755982943905,3.78674858,115340.0,115330.0,0.29120014]
[1755982948703,3.00030858,115340.0,115330.0,0.29120014]
[1755982948903,3.78666858,115340.0,115330.0,0.29120014]
[1755982951811,3.8069884,115340.0,115330.0,0.19425799]
[1755982953105,3.9509884,115340.0,115330.0,0.19425799]
[1755982953406,3.78666858,115340.0,115330.0,0.19425799]
[1755982953610,3.78666858,115340.0,115330.0,0.22793799]
[1755982954814,3.78666858,115340.0,115330.0,0.19425799]
[1755982956309,3.78666858,115340.0,115330.0,0.22793799]
[1755982957114,3.78666858,115340.0,115330.0,0.19425799]
[1755982958008,3.78666858,115340.0,115330.0,0.25647014]
[1755982960317,3.78666858,115340.0,115330.0,0.24272014]
[1755982961419,3.78666858,115340.0,115330.0,0.17105014]
[1755982961622,3.80698847,115340.0,115330.0,0.17105014]
[1755982963714,3.80698847,115340.0,115330.0,0.10883799]
[1755982965515,3.80698847,115340.0,115330.0,0.13195799]
[1755982965711,3.80698847,115340.0,115330.0,0.14123799]
[1755982966216,3.80698847,115340.0,115330.0,0.20345014]
[1755982968719,3.44618847,115340.0,115330.0,0.20345014]
[1755982969121,3.42586858,115340.0,115330.0,0.20345014]
[1755982969319,3.42586858,115340.0,115330.0,0.17105014]
[1755982969716,3.06506858,115340.0,115330.0,0.17105014]
[1755982969923,3.44618832,115340.0,115330.0,0.17105014]
[1755982970922,3.44618832,115340.0,115330.0,0.10883799]
[1755982971529,3.42586858,115340.0,115330.0,0.17105014]
[1755982971829,3.42586858,115340.0,115330.0,0.19417014]
[1755982972127,3.42586858,115340.0,115330.0,0.20345014]
[1755982980734,3.42586858,115340.0,115330.0,0.22604014]
[1755982982031,3.42586858,115340.0,115330.0,0.27386014]
[1755982984634,3.06506858,115340.0,115330.0,0.27386014]
[1755982984838,3.42586858,115340.0,115330.0,0.27386014]
[1755982986839,3.42586858,115340.0,115330.0,0.24056014]
[1755982987138,3.42586858,115340.0,115330.0,0.22604014]
[1755982988842,2.93877901,115340.0,115330.0,0.25934014]
[1755982989142,3.42586858,115340.0,115330.0,0.27386014]
[1755982989343,3.42586858,115340.0,115330.0,0.28955014]
[1755982989941,3.42446858,115340.0,115330.0,0.28955014]
[1755982992041,1.79161901,115340.0,115330.0,0.50625014]
[1755982992254,3.04298858,115340.0,115330.0,0.83813799]
[1755982994043,2.55589901,115340.0,115330.0,0.83813799]
[1755982994247,3.04298858,115340.0,115330.0,0.90035014]
[1755982994449,2.25774858,115340.0,115330.0,0.83813799]
[1755982994645,3.04310858,115340.0,115330.0,0.91596662]
[1755982996053,3.04310858,115340.0,115330.0,0.83813799]
[1755982998456,3.06406858,115340.0,115330.0,0.83813799]
[1755982999460,2.27870858,115340.0,115330.0,0.83813799]
[1755982999660,3.06382858,115340.0,115330.0,0.83813799]
[1755982999860,2.25774858,115340.0,115330.0,1.41195666]
[1755983000046,3.04286858,115340.0,115330.0,1.41195666]
[1755983000661,1.77065901,115340.0,115330.0,1.41195666]
[1755983000859,1.77065901,115340.0,115330.0,1.48978529]
[1755983000860,2.55589901,115340.0,115330.0,1.48978529]
[1755983001161,2.55589901,115340.0,115330.0,1.50768536]
[1755983001959,2.54059901,115340.0,115330.0,1.42983725]
[1755983002459,2.54059901,115340.0,115330.0,1.50764706]
[1755983002762,2.54059901,115340.0,115330.0,1.02055749]
[1755983002960,2.54059901,115340.0,115330.0,1.50764706]
[1755983003361,2.54059901,115340.0,115330.0,1.42983725]
[1755983003561,2.54059901,115340.0,115330.0,1.50763295]
[1755983003862,2.54059901,115340.0,115330.0,1.42983725]
[1755983005465,2.54059901,115340.0,115330.0,1.50761456]
[1755983006166,2.45387751,115340.0,115330.0,1.50761456]
[1755983006365,2.45387751,115340.0,115330.0,1.50760515]
[1755983006764,2.45387751,115340.0,115330.0,1.02051558]
[1755983007165,2.45563751,115340.0,115330.0,1.81760515]
[1755983007358,2.45563751,115340.0,115330.0,1.84872527]
[1755983009962,2.45563751,115340.0,115330.0,1.59872527]
[1755983010167,2.45563751,115340.0,115330.0,1.48983725]
[1755983012672,2.45531751,115340.0,115330.0,1.48983725]
[1755983013572,0.80607751,115340.0,115330.0,1.48983725]
[1755983016776,0.80611751,115340.0,115330.0,1.48983725]
[1755983017568,0.80611751,115340.0,115330.0,1.59872527]
[1755983018477,0.80611751,115340.0,115330.0,1.95952527]
[1755983025473,0.80611751,115340.0,115330.0,1.85063725]
[1755983025677,0.61431468,115360.0,115330.0,1.93736635]
[1755983025876,0.63070468,115360.0,115350.0,0.60799725]
[1755983026177,1.41690468,115360.0,115350.0,0.64242725]
[1755983026373,0.14361511,115360.0,115350.0,0.64242725]
[1755983026678,0.92981001,115360.0,115350.0,1.12951682]
[1755983026881,0.93181001,115360.0,115350.0,0.64242725]
[1755983027182,0.93181001,115360.0,115350.0,1.12951682]
[1755983028480,0.93281001,115360.0,115350.0,1.12951682]
[1755983028681,0.84630341,115360.0,115350.0,1.12951682]
[1755983029571,0.84630341,115360.0,115350.0,1.05173367]
[1755983029771,0.93300981,115360.0,115350.0,1.05173367]
[1755983029980,0.93000981,115360.0,115350.0,1.05373367]
[1755983030279,0.93000981,115360.0,115350.0,1.16057166]
[1755983030691,0.84330341,115360.0,115350.0,1.63026808]
[1755983031171,0.93000991,115360.0,115350.0,1.63026808]
[1755983031368,0.82234341,115360.0,115350.0,1.63026808]
[1755983032171,0.82234341,115360.0,115350.0,1.63887224]
[1755983032983,0.90904991,115360.0,115350.0,1.63887224]
[1755983033683,0.90904991,115360.0,115350.0,1.63026808]
[1755983039990,0.90904991,115360.0,115350.0,1.5991703]
[1755983040293,0.90904991,115360.0,115350.0,1.11208073]
[1755983040588,0.90904991,115360.0,115350.0,1.5991703]
[1755983043884,0.90904991,115360.0,115350.0,1.11208073]
[1755983044183,1.41709948,115360.0,115350.0,1.5988203]
[1755983044889,1.41709948,115360.0,115350.0,1.5978203]
[1755983045087,1.41709948,115360.0,115350.0,1.5988203]
[1755983045287,1.41709948,115360.0,115350.0,1.52102166]
[1755983045484,1.41709948,115360.0,115350.0,1.62891808]
[1755983045687,1.41709948,115360.0,115350.0,1.62991808]
[1755983046093,1.41709948,115360.0,115350.0,1.62891808]
[1755983046999,0.93000991,115360.0,115350.0,1.62891808]
[1755983047297,0.93000991,115360.0,115350.0,1.62791808]
[1755983047595,0.93000991,115360.0,115350.0,1.26711808]
[1755983056095,0.93000991,115360.0,115350.0,0.90631808]
[1755983056295,0.93000991,115360.0,115350.0,1.26711808]
[1755983060805,0.90904991,115360.0,115350.0,1.26711808]
[1755983062198,0.90904991,115360.0,115350.0,1.26732171]
[1755983063405,0.90904991,115360.0,115350.0,1.15822166]
[1755983063599,0.90904991,115360.0,115350.0,1.2673215]
[1755983064901,0.90904991,115360.0,115350.0,1.15822166]
[1755983065906,0.93000991,115360.0,115350.0,1.15822166]
[1755983066102,0.93000991,115360.0,115350.0,1.26732483]
[1755983067209,0.93000991,115360.0,115350.0,1.15822166]
[1755983067606,0.90904991,115360.0,115350.0,1.15822166]
[1755983068305,0.90904991,115360.0,115350.0,1.26732824]
[1755983068707,0.90904991,115360.0,115350.0,1.15822166]
[1755983069711,0.90904991,115360.0,115350.0,1.15922166]
[1755983070411,0.90904991,115360.0,115350.0,1.16022166]
[1755983074215,0.90904991,115360.0,115350.0,1.17038942]
[1755983074718,0.90905041,115360.0,115350.0,1.17038942]
[1755983075016,0.82234341,115360.0,115350.0,1.17038942]
[1755983075208,0.82098341,115360.0,115350.0,1.17038942]
[1755983075410,0.03594341,115360.0,115350.0,1.17038942]
[1755983075711,0.80471341,115360.0,115350.0,1.17038942]
[1755983075911,0.80471341,115360.0,115350.0,1.16022166]
[1755983076113,0.80471341,115360.0,115350.0,1.1703893]
[1755983076416,0.80471341,115360.0,115350.0,1.15922166]
[1755983076606,0.80471341,115360.0,115350.0,1.17038924]
[1755983078613,0.01955341,115360.0,115350.0,1.17038924]
[1755983078818,0.80463341,115360.0,115350.0,1.17038924]
[1755983079319,0.68750529,115360.0,115350.0,1.17038906]
[1755983080321,0.70410529,115360.0,115350.0,1.17038906]
[1755983081926,0.70410529,115360.0,115350.0,1.27947908]
[1755983085734,0.70410529,115360.0,115350.0,1.27947903]
[1755983086535,0.70410529,115360.0,115350.0,1.279479]
[1755983091226,0.70410529,115360.0,115350.0,1.17038898]
[1755983095537,0.70410529,115360.0,115350.0,1.16022166]
[1755983095738,0.70410529,115360.0,115350.0,1.17038901]
[1755983100341,0.0166,115360.0,115350.0,1.17038901]
[1755983100545,0.80148,115360.0,115350.0,1.17038901]
[1755983100841,2.13332614,115360.0,115350.0,0.21431323]
[1755983101045,0.86135657,115360.0,115350.0,0.2231133]
[1755983101245,1.64623657,115360.0,115350.0,0.2231133]
[1755983101648,1.64623657,115360.0,115350.0,0.28546449]
[1755983102343,1.64623657,115360.0,115350.0,0.31039449]
[1755983102546,1.64623657,115360.0,115350.0,0.22367999]
[1755983102738,1.64623657,115360.0,115350.0,0.22267999]
[1755983102938,1.64623657,115360.0,115350.0,0.22367999]
[1755983103139,1.64823657,115360.0,115350.0,0.22267999]
[1755983104346,1.64823657,115360.0,115350.0,0.21251264]
[1755983104547,1.64823657,115360.0,115350.0,0.22268144]
[1755983105150,1.64923657,115360.0,115350.0,0.23097144]
[1755983106241,1.64923657,115360.0,115350.0,0.31768594]
[1755983107141,1.64923657,115360.0,115350.0,0.25533475]
[1755983107447,1.64923657,115360.0,115350.0,0.31759935]
[1755983109350,1.64923657,115360.0,115350.0,0.25533475]
[1755983111046,1.64927657,115360.0,115350.0,0.25533475]
[1755983111348,1.64927657,115360.0,115350.0,0.34061706]
[1755983111549,1.64927657,115360.0,115350.0,0.27836475]
[1755983111849,1.64927657,115360.0,115350.0,0.35627918]
[1755983113054,0.86435657,115360.0,115350.0,0.35627918]
[1755983113238,0.86435657,115360.0,115350.0,0.38936918]
[1755983113439,1.64931657,115360.0,115350.0,0.38936918]
[1755983113651,1.64931657,115360.0,115350.0,0.40379918]
[1755983114352,1.64931657,115360.0,115350.0,0.40379903]
[1755983114744,1.64931657,115360.0,115350.0,0.40379911]
[1755983116859,0.86435657,115360.0,115350.0,0.40379911]
[1755983117158,1.64931657,115360.0,115350.0,0.40379911]
[1755983117357,1.64931657,115360.0,115350.0,0.76459911]
[1755983117558,1.64931657,115360.0,115350.0,0.40379896]
[1755983122458,1.64931657,115360.0,115350.0,0.32588453]
[1755983124258,1.64931657,115360.0,115350.0,0.40379905]
[1755983124459,1.64931657,115360.0,115350.0,0.32588462]
[1755983124759,1.64931657,115360.0,115350.0,0.40379905]
[1755983125163,1.64931657,115360.0,115350.0,0.32588462]
[1755983126051,1.162227,115360.0,115350.0,0.32588462]
[1755983126256,1.64931657,115360.0,115350.0,0.32588462]
[1755983127162,1.64931657,115360.0,115350.0,0.40379905]
[1755983128063,1.64931657,115360.0,115350.0,0.41998905]
[1755983130063,1.39931657,115360.0,115350.0,0.41998905]
[1755983134262,1.39931657,115360.0,115350.0,0.4199891]
[1755983136670,1.39931657,115360.0,115350.0,0.40259564]
[1755983140369,1.39931657,115360.0,115350.0,0.32468121]
[1755983140669,1.39931657,115360.0,115350.0,0.32468119]
[1755983140873,1.39931657,115360.0,115350.0,0.40263918]
[1755983144069,1.39931657,115360.0,115350.0,0.40263922]
[1755983146374,2.24720614,115360.0,115350.0,0.11700673]
[1755983146572,2.49720614,115360.0,115350.0,0.15841874]
[1755983147077,2.49720614,115360.0,115350.0,0.14825]
[1755983148371,2.49720614,115360.0,115350.0,0.08587799]
[1755983149473,2.51769859,115360.0,115350.0,0.08587799]
[1755983151076,2.66179859,115360.0,115350.0,0.08587799]
[1755983153280,2.64130614,115360.0,115350.0,0.08587799]
[1755983158984,2.39130614,115360.0,115350.0,0.08587799]
[1755983159180,2.64130614,115360.0,115350.0,0.00438899]
[1755983159389,2.64130614,115360.0,115350.0,9e-08]
[1755983159990,2.39130614,115360.0,115350.0,9e-08]
[1755983160190,2.64130614,115360.0,115350.0,9e-08]
[1755983161489,2.66175811,115360.0,115350.0,9e-08]
[1755983164696,1.87679811,115360.0,115350.0,9e-08]
[1755983164892,2.66175811,115360.0,115350.0,9e-08]
[1755983166490,1.87679811,115360.0,115350.0,9e-08]
[1755983166898,2.66175811,115360.0,115350.0,0.05627009]
[1755983167098,2.66175811,115360.0,115350.0,0.03151439]
[1755983167099,2.64130614,115360.0,115350.0,0.03151439]
[1755983167296,2.66175175,115360.0,115350.0,0.03151439]
[1755983167702,2.66175175,115360.0,115350.0,9e-08]
[1755983167904,2.66224175,115360.0,115350.0,9e-08]
[1755983168502,1.87728175,115360.0,115350.0,9e-08]
[1755983168705,2.66224175,115360.0,115350.0,9e-08]
[1755983170304,0.1028645,115350.0,115340.0,0.12086]
[1755983170498,1.32823691,115350.0,115340.0,0.12086]
[1755983170697,2.11323691,115350.0,115340.0,0.12086]
[1755983171306,2.25733691,115350.0,115340.0,0.12086]
[1755983173605,2.25833691,115350.0,115340.0,0.12086]
[1755983173807,2.26033691,115350.0,115340.0,0.12086]